Cogmind - Beta 11.1 @@@ ROGUE MODE // 2022.06.30 @ 09:51:52 Player: Cyurio Result: Self-destructed Performance ------------- Evolutions (2) 1000 Regions Visited (5) 1000 Robots Destroyed (4) 20 Value Destroyed (64) 64 Prototype IDs (0) 0 Alien Tech Used (0) 0 Bonus (0) 0 TOTAL SCORE: 2084 Bonus ------- None Cogmind --------- Core Integrity 550/550 Matter 180/300 Energy 123/125 System Corruption 0% Temperature Cool (0) Movement Flying (37) Location -8/Materials Parts ------- > --- POWER (1) -------- Light Ion Engine > --- PROPULSION (4) --- Flight Unit Flight Unit > --- UTILITY (4) ------ Small Storage Unit Weight Redist. System Signal Interpreter Terrain Scanner > --- WEAPON (2) ------- Particle Gun Datajack > --- INVENTORY (8) ---- Large Storage Unit Improved Targeting Computer ECM Suite Light Armor Plating System Shield Particle Gun Peak State ------------ > --- POWER ------------ Light Ion Engine > --- PROPULSION ------- Flight Unit Flight Unit > --- UTILITY ---------- Small Storage Unit Weight Redist. System Signal Interpreter Terrain Scanner > --- WEAPON ----------- Particle Gun Datajack > --- INVENTORY -------- Large Storage Unit Improved Targeting Computer ECM Suite Light Armor Plating System Shield Particle Gun [Rating: 12] Favorites ----------- Power Ion Engine Engine Ion Engine Propulsion Aluminum Leg Leg Aluminum Leg Wheel Compact Wheel Flight Unit Flight Unit Utility Small Storage Unit Device Weight Redist. System Storage Small Storage Unit Processor Signal Interpreter Protection Light Armor Plating Weapon Medium Laser Energy Gun Medium Laser Ballistic Cannon Light Cannon Special Melee Weapon Datajack Build | -11 -10 -10 -9 -9 -8 ------- Run | Scr Mat Min Mat Sto Mat Slots Evolved 4 | . . . 2 . 2 Power . | . . . . . . Propulsion 2 | . . . 1 . 1 Utility 2 | . . . 1 . 1 Weapon . | . . . . . . Parts Attached 16 | . 4 1 5 3 3 Power 1 | . . . 1 . . Engine 1 | . . . 1 . . Core . | . . . . . . Reactor . | . . . . . . Propulsion 3 | . . 1 . 2 . Treads . | . . . . . . Leg . | . . . . . . Wheel 1 | . . 1 . . . Hover . | . . . . . . Flight 2 | . . . . 2 . Utility 7 | . 2 . 2 1 2 Device 4 | . . . 1 1 2 Storage . | . . . . . . Processor 1 | . 1 . . . . Hackware . | . . . . . . Protection 2 | . 1 . 1 . . Artifact . | . . . . . . Weapon 5 | . 2 . 2 . 1 Energy Gun 3 | . 1 . 2 . . Energy Cannon . | . . . . . . Ballistic Gun . | . . . . . . Ballistic Cannon 1 | . 1 . . . . Launcher . | . . . . . . Special Weapon . | . . . . . . Impact Weapon . | . . . . . . Slashing Weapon . | . . . . . . Piercing Weapon . | . . . . . . Special Melee Weapon 1 | . . . . . 1 Unidentified Prototypes . | . . . . . . Parts Lost 6 | . . 4 1 1 . Power 1 | . . . 1 . . Propulsion 3 | . . 2 . 1 . Utility . | . . . . . . Weapon 2 | . . 2 . . . Highest Loss Streak 4 | . . 4 1 1 . To Critical Strikes . | . . . . . . Average Slot Usage (%) 90 | . 98 95 61 82 81 Engine 12 | . 14 14 8 11 9 Leg 18 | . 28 23 . . . Wheel 2 | . . 4 11 6 . Flight 3 | . . . . 19 18 Device 2 | . . . 6 9 18 Storage 12 | . 14 14 11 11 9 Processor 8 | . 7 14 11 11 9 Protection 4 | . 5 . 4 1 . Energy Gun 20 | . 25 23 8 12 9 Naked Turns . | . . . . . . Heaviest Build 18 | 13 18 13 17 17 14 Greatest Support 20 | 20 20 20 16 16 14 Greatest Overweight (x) 1 | . . . 1 1 . Average Overweight (x) . | . . . . . . Largest Inventory Capacity 8 | . 8 8 8 8 8 Average Capacity 8 | . 8 8 8 8 8 Most Carried 8 | . 8 8 8 8 6 Average Carried 7 | . 7 7 6 6 5 Final Capacity 8 | 8 8 8 8 8 8 Final Carried 8 | 6 8 7 6 6 6 Class Distribution -------------------- 100% | Mutant Dominant Class ---------------- Mutant | -10/Materials Mutant | -10/Mines Mutant | -9/Materials Mutant | -9/Storage Mutant | -8/Materials Resources | -11 -10 -10 -9 -9 -8 ----------- Run | Scr Mat Min Mat Sto Mat Matter Collected 210 | 200 10 . . . . Remotely . | . . . . . . Salvage Created 77 | . 32 . 45 . . Parts 9 | . 2 . 7 . . Haulers Intercepted . | . . . . . . Recyclers Shooed . | . . . . . . Parts Field Recycled . | . . . . . . Retrieved Matter . | . . . . . . Parts Self-Destructed . | . . . . . . Prevented . | . . . . . . Kills | -11 -10 -10 -9 -9 -8 ------- Run | Scr Mat Min Mat Sto Mat Combat Hostiles Destroyed 4 | . 1 . 3 . . Guns 4 | . 1 . 3 . . Classes Destroyed 2 | . 1 . 1 . . Swarmer 3 | . . . 3 . . Grunt 1 | . 1 . . . . Best Kill Streak 3 | . 1 . 3 . . Combat Bots Only 3 | . 1 . 3 . . Max Kills in Single Turn 1 | . 1 . 1 . . Gunslinging . | . . . . . . Exploded . | . . . . . . Melee . | . . . . . . Uniques/NPCs Destroyed . | . . . . . . Combat | -11 -10 -10 -9 -9 -8 -------- Run | Scr Mat Min Mat Sto Mat Damage Taken 839 | . 54 503 175 107 . Core 274 | . 11 155 69 39 . Absorbed by Shields . | . . . . . . Core Remaining (%) 68 | 100 . 33 . 73 . Volleys Fired 14 | . 4 1 6 3 . Largest 2 | . 2 2 2 1 . Hottest 130 | . 90 90 130 65 . Shots Fired 25 | . 8 2 12 3 . Gun 25 | . 8 2 12 3 . Cannon . | . . . . . . Launcher . | . . . . . . Special . | . . . . . . Kinetic . | . . . . . . Thermal 25 | . 8 2 12 3 . Explosive . | . . . . . . Electromagnetic . | . . . . . . Robot Hit Streak 8 | . 7 8 2 1 . Robot Miss Streak 3 | . . 1 3 1 . Penetration Max . | . . . . . . Secondary Targets 1 | . . . 1 . . Max Gunslinging Chain 1 | . . . 1 . . Shots Hit Robots 14 | . 7 1 5 1 . Core Hits 5 | . 2 . 3 . . Critical Kills . | . . . . . . Critical Parts Destroyed . | . . . . . . Critical Strikes 2 | . . . 1 1 . Burn 2 | . . . 1 1 . Melee Attacks . | . . . . . . Impact . | . . . . . . Slashing . | . . . . . . Piercing . | . . . . . . Sneak Attacks . | . . . . . . Combat Hostiles . | . . . . . . Follow-up Attacks . | . . . . . . Damage Inflicted 183 | . 80 12 76 15 . Guns 183 | . 80 12 76 15 . Cannons . | . . . . . . Explosions . | . . . . . . Melee . | . . . . . . Ramming . | . . . . . . Kinetic . | . . . . . . Thermal 183 | . 80 12 76 15 . Explosive . | . . . . . . Electromagnetic . | . . . . . . Impact . | . . . . . . Slashing . | . . . . . . Piercing . | . . . . . . Highest Corruption . | . . . . . . Average Corruption . | . . . . . . Corruption Purged . | . . . . . . Corruption Blocked . | . . . . . . Overload Shots . | . . . . . . Overflow Damage . | . . . . . . Projectiles . | . . . . . . Explosions . | . . . . . . Melee . | . . . . . . Knockbacks . | . . . . . . Impact . | . . . . . . Kinetic . | . . . . . . Secondary . | . . . . . . Self-Inflicted Damage . | . . . . . . Shots . | . . . . . . Rammed . | . . . . . . Targets Rammed . | . . . . . . Kicked . | . . . . . . Crushed . | . . . . . . Highest Temperature 324 | . 186 60 324 46 . Average Temperature 113 | . 97 31 163 22 . Received Heat Transfer 144 | . 30 63 . 51 . Siege Activations . | . . . . . . Robots Corrupted . | . . . . . . Combat Hostiles . | . . . . . . Parts Fried . | . . . . . . Impact Corruptions . | . . . . . . Robots Melted . | . . . . . . Combat Hostiles . | . . . . . . Parts Melted . | . . . . . . Heat Transferred 630 | . 223 37 259 111 . Parts Sabotaged . | . . . . . . Parts Stolen . | . . . . . . Parts Stripped . | . . . . . . Power Chain Reactions . | . . . . . . Missiles Intercepted . | . . . . . . Alert | -11 -10 -10 -9 -9 -8 ------- Run | Scr Mat Min Mat Sto Mat Peak Influence 124 | . 124 . 70 86 65 Initial 35 | . . . . 29 35 Average 48 | . 56 . 22 55 37 Maximum Alert Level . | . . . . . . Low Security (%) 100 | . 100 100 100 100 100 Level 1 . | . . . . . . Level 2 . | . . . . . . Level 3 . | . . . . . . Level 4 . | . . . . . . Level 5 . | . . . . . . High Security . | . . . . . . Max Security . | . . . . . . Squads Dispatched 6 | . 3 . . 2 1 Investigation 2 | . 1 . . . 1 Extermination . | . . . . . . Reinforcement 4 | . 2 . . 2 . Assault . | . . . . . . Garrison . | . . . . . . Intercept . | . . . . . . Searches Triggered . | . . . . . . Construction Impeded . | . . . . . . Haulers Reinforced . | . . . . . . Active Scanning Responses . | . . . . . . Cargo Convoy Interrupts . | . . . . . . Stealth | -11 -10 -10 -9 -9 -8 --------- Run | Scr Mat Min Mat Sto Mat Distress Signals 4 | . . . . 3 1 Communications Jammed . | . . . . . . Distress Signals . | . . . . . . Times Spotted 29 | . 8 4 3 12 2 Peak Tracking Total 10 | . 2 4 3 10 7 Tactical Retreats 1 | . . . . 1 . Traps | -11 -10 -10 -9 -9 -8 ------- Run | Scr Mat Min Mat Sto Mat Traps Triggered 1 | . 1 . . . . Indirectly . | . . . . . . Trap Hack Attempts . | . . . . . . Triggered . | . . . . . . Disarmed . | . . . . . . Reprogrammed . | . . . . . . Reused . | . . . . . . Traps Extracted . | . . . . . . Installed . | . . . . . . Triggered . | . . . . . . Machines | -11 -10 -10 -9 -9 -8 ---------- Run | Scr Mat Min Mat Sto Mat Machines Disabled . | . . . . . . Max in Single Turn . | . . . . . . Machines Sabotaged . | . . . . . . Garrisons Compromised . | . . . . . . Overloaded Fab Kills . | . . . . . . Hacking | -11 -10 -10 -9 -9 -8 --------- Run | Scr Mat Min Mat Sto Mat Machines Accessed 5 | . 2 . 1 1 1 Terminals 5 | . 2 . 1 1 1 Fabricators . | . . . . . . Repair Stations . | . . . . . . Recycling Units . | . . . . . . Scanalyzers . | . . . . . . Garrison Access . | . . . . . . Total Hacks 13 | . 6 . 3 2 2 Successful 7 | . 4 . 1 1 1 Failed 6 | . 2 . 2 1 1 Catastrophic 3 | . 1 . . 1 1 Database Lockouts . | . . . . . . Manual 9 | . 4 . 3 . 2 Terminals 13 | . 6 . 3 2 2 Fabricators . | . . . . . . Repair Stations . | . . . . . . Recycling Units . | . . . . . . Scanalyzers . | . . . . . . Garrison Access . | . . . . . . Terminal Hacks 3 | . 1 . . 1 1 Open Door 1 | . . . . 1 . Branch Access Points 1 | . . . . . 1 Emergency Access Points 1 | . 1 . . . . Fabricator Hacks . | . . . . . . Repair Station Hacks . | . . . . . . Recycling Unit Hacks . | . . . . . . Scanalyzer . | . . . . . . Garrison Access Hacks . | . . . . . . Unauthorized Hacks 4 | . 3 . 1 . . Terminals 4 | . 3 . 1 . . Track 1 | . 1 . . . . Botnet 3 | . 2 . 1 . . Fabricators . | . . . . . . Repair Stations . | . . . . . . Recycling Units . | . . . . . . Scanalyzers . | . . . . . . Garrison Access . | . . . . . . Data Cores Recovered . | . . . . . . Used . | . . . . . . Hacking Detections 4 | . 2 . . 1 1 Full Trace Events 2 | . . . . 1 1 Feedback Events . | . . . . . . Feedback Blocked . | . . . . . . Robot Schematics Acquired . | . . . . . . Robots Built . | . . . . . . Authchips . | . . . . . . Time . | . . . . . . Total Robot Build Rating . | . . . . . . Part Schematics Acquired . | . . . . . . Parts Built . | . . . . . . Authchips . | . . . . . . Time . | . . . . . . Total Part Build Rating . | . . . . . . Parts Repaired . | . . . . . . Time . | . . . . . . Parts Recycled . | . . . . . . Recycled Matter . | . . . . . . Retrieved Matter . | . . . . . . Retrieved Components . | . . . . . . Parts Scanalyzed . | . . . . . . Part Schematics Acquired . | . . . . . . Parts Damaged . | . . . . . . Bothacking | -11 -10 -10 -9 -9 -8 ------------ Run | Scr Mat Min Mat Sto Mat Used RIF Installer . | . . . . . . Robots Hacked . | . . . . . . Non-combat . | . . . . . . Combat . | . . . . . . Robot Hacks Applied . | . . . . . . Relay Couplers Released . | . . . . . . Fabnet Peak Effective % . | . . . . . . Robots Rewired . | . . . . . . Allies Hacked . | . . . . . . Hacks Repelled . | . . . . . . Allies | -11 -10 -10 -9 -9 -8 -------- Run | Scr Mat Min Mat Sto Mat Total Allies . | . . . . . . Largest Group . | . . . . . . Highest-Rated Group . | . . . . . . Highest-Rated Ally . | . . . . . . Total Orders . | . . . . . . Ally Attacks . | . . . . . . Total Damage . | . . . . . . Kills . | . . . . . . Allies Corrupted . | . . . . . . Allies Melted . | . . . . . . Intel | -11 -10 -10 -9 -9 -8 ------- Run | Scr Mat Min Mat Sto Mat Robot Analysis Total . | . . . . . . Derelict Logs Recovered . | . . . . . . Drone Launches . | . . . . . . Drone Recoveries . | . . . . . . Exploration | -11 -10 -10 -9 -9 -8 ------------- Run | Scr Mat Min Mat Sto Mat Turns Passed 633 | . 407 25 92 76 33 Spaces Moved 566 | 1 258 20 65 149 73 Core . | . . . . . . Treads . | . . . . . . Legs 269 | 1 258 10 . . . Wheels 83 | . . 10 65 8 . Hover . | . . . . . . Flight 214 | . . . . 141 73 Fastest Speed 37 | 120 120 100 100 37 37 Average Speed 86 | 120 120 110 103 43 37 Slowest Speed 120 | 120 120 120 115 115 37 Overloaded Moves . | . . . . . . Propulsion Burnouts . | . . . . . . Robots Hopped 7 | . . . . 7 . Cave-ins Triggered . | . . . . . . Exploration Rate (%) 21 | 2 48 12 9 45 10 Regions Visited 5 Branch Regions 2 Pre-discovered Areas . | . . . . . . Known Exits Taken 4 | . 1 1 1 1 . Unknown Exits Taken 1 | 1 . . . . . Scrap Searched . | . . . . . . Spaces Dug . | . . . . . . Terrain Destroyed . | . . . . . . Melee . | . . . . . . Projectile . | . . . . . . AOE . | . . . . . . Terrain Rammed . | . . . . . . Walls Destroyed . | . . . . . . Machines Disabled . | . . . . . . Actions | -11 -10 -10 -9 -9 -8 --------- Run | Scr Mat Min Mat Sto Mat Total 674 | . 350 21 77 149 77 Wait 67 | . 67 . . . . Move 547 | . 257 19 64 134 73 Hop 7 | . . . . 7 . Pick Up 13 | . 9 . 2 1 1 Fast Attach 4 | . 2 . 1 . 1 Attach 8 | . 1 1 3 2 1 Detach 2 | . 1 . . 1 . Swap 4 | . 1 . 1 1 1 Drop 8 | . 8 . . . . Fire 14 | . 4 1 6 3 . Melee . | . . . . . . Ram . | . . . . . . Kick . | . . . . . . Crush . | . . . . . . Escape Stasis . | . . . . . . Rewire . | . . . . . . Trap . | . . . . . . Miscellaneous . | . . . . . . Route ------- -11/Scrapyard -10/Materials (discovered 2 exits: *Mat / *Min) -10/Mines -9/Materials -9/Storage -8/Materials History --------- Turn | Location | Event 1 | -11/Scrapyard | Discovered new exit (range 0) 1 | -11/Scrapyard | Entered Materials 184 | -10/Materials | Discovered new exit (range 4) 190 | -10/Materials | Identified exit to Materials 306 | -10/Materials | Build established: Mutant 378 | -10/Materials | Discovered new exit (range 16) 407 | -10/Materials | Identified exit to Mines 408 | -10/Materials | Entered Mines 409 | -10/Mines | Assembled infested the area 421 | -10/Mines | Discovered exit to Materials (range 12) 431 | -10/Mines | Core integrity fell below 50% 433 | -10/Mines | Entered Materials 433 | -9/Materials | Evolved 2 slots: Propulsion x1, Utility x1 433 | -9/Materials | Discovered new exit (range 16) 453 | -9/Materials | Identified exit to Storage 463 | -9/Materials | Lost 4 parts (2n2w) 525 | -9/Materials | Entered Storage 598 | -9/Storage | Discovered new exit (range 9) 601 | -9/Storage | Identified exit to Materials 601 | -9/Storage | Entered Materials 601 | -8/Materials | Evolved 2 slots: Propulsion x1, Utility x1 634 | -8/Materials | Self-destructed Last Messages --------------- >>Open(Door) Sealed Heavy Doors opened. 00575_ Com. Wheel destroyed. 00582_ W-16 Scout sends out distress signal. 00590_ O-16 Technician: "IFF HANDSHAKE FAILED. SECURING TERMINAL." 00593_ ALERT: Hostiles spotted, dispatching reinforcements to Terminal S005. 00598_ EXIT=FOUND 00601_ EXIT=IDENTIFIED: MATERIALS PARAMETERS=PROPULSION+1,UTILITY+1 LOCATION=MATERIALS GOAL=ESCAPE 00607_ Acquired Datajack. 00623_ Acquired System Shield. 00631_ W-25 Informer sends out distress signal. 00634_ Connecting with Terminal... >>Access(Branch) No branch access points found. 00634_ ALERT: Suspicious activity at Terminal M005. Dispatching Investigation squad. Map ----- +----------------------------------------------------+ | ?????????????????????????????????????????? | | ?????????????????????????????????????????? | | ?????????????????????????????????????????? | | ?????????????????????????????????????????? | | ?????????????????????????????????????????? | | ?????????????????????????????????????????? | | ?????????????????????????????????????????? | | ?????????????????????????????????????????? | | ?????????????????????????????????????????? | | ?????????????????????????????????????????? | | ?????????????????????????????????????????? | | ?????????????????????????????????????????? | | ?????????????????????????????????????????? | | ?????????????????????????????????????????? | | ?????????????????????????????????????????? | | ?????????????????????????????????????????? | | ?????????????????????????????????????????? | | ??????????????######?????????????????????? | | ??????????????# #?????????? ????????? | | ??????????????# #?????????# #???????? | | ??????????????# #?????????# #??###### | | ??????????????# #?????????# #??# | | ??????????????# #?????????# #??# | | ??????????????# "#?????????# #??# | | ??????????????# k T#?????????# #??? | | ??????????????# @"#?????????# #??? | | ??????????????# k #?????????# #???# # | | ????????"" # ##+######+###### #???# # | | ????????"" + #???# # | | ???????????# #???# # | | ???????????# #######+#####^ #???# # | | ???????????# ???# # #???# # | | ???????????# ????# # ##### # | | ??????????? ?????# # | | ?????????? ??????# + ##### | | ?????????#???????# ## #???# | | ?????????????????# ##+##+##???##### | | ?????????????????# # ??????????? | | ?????????????????# # ????????? | | ?????????????????# ! # ??????? | | ?????????????????########## #????? | | ??????????????????????????# #????? | | ??????????????????????????# #????? | | ??????????????????????????# #????? | | ??????????????????????????# #????? | | ??????????????????????????###########????? | | ??????????????????#??????????????????????? | | ?????????????????????????????????????????? | | | | | +----------------------------------------------------+ Best States ------------- Heat Dissipation 31 Energy Generation 10 Energy Capacity 250 Matter Stores 300 Matter Capacity 300 Sight Range 16 Terrain Scan Range 14 Terrain Scan Density 10 Additional Mass Support 6 Armor Coverage 150 Evasion (%) 62 Item Schematics ----------------- None Robot Schematics ------------------ None Fabricated ------------ Nothing Alien Tech Used ----------------- None Achievements -------------- None Challenges ------------ None Game ------ Seed MobileInsulatedTorch Manual? 0 Play Time 00:09:29 Cumulative 52.4 hours Start 2022.06.30 @ 09:43:10 End 2022.06.30 @ 09:51:52 Sessions 1 Manual Loads 0 Difficulty Rogue Special Mode None Game No. 85 Rogue 85 Adventurer 0 Explorer 0 Win Type - Total 0 Types 0/0/0/0/0/0/0/0/0 Lore% 33 Gallery% 37 Achievement% 31 Wizard Run 0 Options --------- ASCII 0 Keyboard 1 Movement Vi Keybinds 1 Fullscreen 1 Font 24/Smallcaps Map View 76x50 Tactical HUD 1 Map Filters NONE Filters NONE Steam 1 RUN: d470a827-af38-41fd-a954-64cb07bfc6c8